bitfinex/quotes_BTCUSD_20240901
["timestamp","ask_amount","ask_price","bid_price","bid_amount"]
[1725201065983,0.001217,57979.0,57978.0,0.014]
[1725201066421,0.001217,57979.0,57978.0,0.186479]
[1725201066642,0.001217,57979.0,57978.0,0.876395]
[1725201066873,0.001217,57979.0,57978.0,0.887395]
[1725201067103,0.001217,57979.0,57978.0,0.873395]
[1725201067322,0.001217,57979.0,57978.0,1.877053]
[1725201067547,0.001217,57979.0,57978.0,1.879053]
[1725201067766,0.001217,57979.0,57978.0,2.224011]
[1725201067987,0.001217,57979.0,57978.0,2.238011]
[1725201068211,0.001217,57979.0,57978.0,1.893053]
[1725201068455,0.001217,57979.0,57978.0,1.891053]
[1725201068677,0.001217,57979.0,57978.0,1.886053]
[1725201068893,0.001217,57979.0,57978.0,1.877053]
[1725201069347,0.001217,57979.0,57978.0,1.838053]
[1725201069571,0.001217,57979.0,57978.0,1.875053]
[1725201069801,0.001217,57979.0,57978.0,1.889053]
[1725201071340,0.001217,57979.0,57978.0,0.545437]
[1725201071817,0.001217,57979.0,57978.0,0.200479]
[1725201072293,0.1910611,57979.0,57978.0,0.028]
[1725201072533,0.3285,57974.0,57968.0,0.172507]
[1725201072748,0.172503,57970.0,57963.0,0.345044]
[1725201072967,0.1997,57973.0,57969.0,0.172503]
[1725201073189,0.5282,57978.0,57974.0,0.17249]
[1725201073406,0.5282,57978.0,57973.0,0.172492]
[1725201073621,0.5282,57978.0,57962.0,0.0008987]
[1725201073622,0.01326961,57977.0,57972.0,0.172496]
[1725201073848,0.172488,57975.0,57970.0,0.172502]
[1725201074065,0.172486,57976.0,57971.0,0.172499]
[1725201074715,0.70068,57978.0,57968.0,0.345014]
[1725201074928,0.70068,57978.0,57962.0,0.0008987]
[1725201074929,0.18574925,57977.0,57971.0,0.172498]
[1725201075145,0.172482,57977.0,57972.0,0.172495]
[1725201075357,0.1725,57971.0,57970.0,0.014]
[1725201075807,0.5175,57971.0,57970.0,0.014]
[1725201076046,0.8625,57971.0,57970.0,0.014]
[1725201076252,0.8625,57971.0,57962.0,0.0008987]
[1725201076253,0.172519,57965.0,57962.0,0.0008987]
[1725201076467,0.02783404,57970.0,57962.0,0.0008987]
[1725201076670,0.6713,57971.0,57963.0,0.172523]
[1725201076671,0.17251,57968.0,57963.0,0.172523]
[1725201076890,0.6713,57971.0,57964.0,0.172519]
[1725201077100,0.6713,57971.0,57962.0,0.0008987]
[1725201077101,0.172518,57965.0,57962.0,0.0008987]
[1725201077519,0.172521,57964.0,57962.0,0.0008987]
[1725201077738,0.345013,57969.0,57958.0,0.172536]
[1725201077950,0.01327579,57968.0,57958.0,0.172536]
[1725201078252,0.17254,57958.0,57951.0,0.345118]
[1725201078458,0.3263,57966.0,57947.0,0.44688315]
[1725201078671,0.51757,57963.0,57962.0,0.014]
[1725201079118,0.0565343,57965.0,57946.0,0.10174215]
[1725201079119,0.172554,57953.0,57946.0,0.10174215]
[1725201079337,0.3263,57952.0,57948.0,0.172566]
[1725201079557,0.1997,57951.0,57947.0,0.17257]
[1725201079775,0.372259,57951.0,57946.0,0.172573]
[1725201079984,0.1997,57951.0,57946.0,0.172573]
[1725201080414,0.1997,57951.0,57948.0,0.172567]
[1725201080625,0.1997,57951.0,57946.0,0.345147]
[1725201080858,0.3040656,57951.0,57944.0,0.10174215]
[1725201081078,0.372261,57951.0,57947.0,0.014]
[1725201081300,0.372261,57951.0,57946.0,0.172574]
[1725201081532,0.372261,57951.0,57943.0,0.47814085]
[1725201081533,0.1997,57951.0,57944.0,0.17258]
[1725201081757,0.3213217,57951.0,57945.0,0.172577]
[1725201082209,0.3213217,57951.0,57942.0,0.44690915]
[1725201082436,0.3213217,57951.0,57940.0,0.47236169]
[1725201082437,0.172566,57949.0,57944.0,0.172578]
[1725201082658,0.172566,57949.0,57946.0,0.014]
[1725201082875,0.1997,57951.0,57946.0,0.028]
[1725201083091,0.1997,57951.0,57947.0,0.17257]
[1725201083534,0.1997,57951.0,57946.0,0.014]
[1725201083535,0.1997,57951.0,57946.0,0.359144]
[1725201083782,0.1997,57951.0,57950.0,0.172562]
[1725201084025,0.1997,57951.0,57947.0,0.345142]
[1725201084026,0.1997,57956.0,57947.0,0.3352]
[1725201084259,0.1997,57956.0,57955.0,0.172547]
[1725201084670,0.3263,57961.0,57947.0,0.3492]
[1725201084928,0.1997,57962.0,57961.0,0.172529]
[1725201085363,0.46834516,57962.0,57948.0,0.19215073]
[1725201085582,0.1997,57962.0,57948.0,0.19215073]
[1725201085803,0.372228,57962.0,57949.0,0.345129]
[1725201086021,0.1997,57962.0,57951.0,0.345118]
[1725201086236,0.1997,57962.0,57959.0,0.172535]
[1725201086456,0.1997,57962.0,57960.0,0.172531]
[1725201086677,0.1997,57962.0,57952.0,0.00435056]
[1725201086678,0.1997,57962.0,57957.0,0.345078]
[1725201087580,0.1997,57970.0,57959.0,0.004]
[1725201087796,0.1997,57970.0,57966.0,0.172513]
[1725201088020,0.344985,57974.0,57966.0,0.172513]
[1725201088237,0.344985,57974.0,57964.0,0.172519]
[1725201088238,0.172504,57970.0,57964.0,0.172519]
[1725201088475,0.172504,57970.0,57965.0,0.172517]
[1725201088679,0.172498,57972.0,57965.0,0.172517]
[1725201088943,0.172498,57972.0,57963.0,0.345045]
[1725201088944,0.172498,57972.0,57966.0,0.172514]
[1725201089384,0.172498,57972.0,57967.0,0.172511]
[1725201089822,0.001,57974.0,57966.0,0.345024]
[1725201090043,0.001,57974.0,57970.0,0.172502]
[1725201090261,0.172495,57973.0,57968.0,0.172507]
[1725201090695,0.001,57974.0,57969.0,0.172504]
[1725201090980,0.001,57974.0,57967.0,0.172509]
[1725201091196,0.5101,57975.0,57967.0,0.345023]
[1725201091436,0.5101,57975.0,57972.0,0.172494]
[1725201091659,0.5101,57975.0,57959.0,0.3217]
[1725201091660,0.001217,57979.0,57975.0,0.172487]
[1725201091878,0.001217,57979.0,57964.0,0.20004996]
[1725201091879,0.173693,57979.0,57973.0,0.344986]
[1725201092105,0.001217,57979.0,57973.0,0.344986]
[1725201092334,0.001217,57979.0,57976.0,0.172484]
[1725201092550,0.001217,57979.0,57971.0,0.344996]
[1725201092551,0.001217,57979.0,57978.0,0.172479]
[1725201092771,0.001217,57979.0,57978.0,0.862395]
[1725201094332,0.001217,57979.0,57975.0,0.013]
[1725201094546,0.172485,57976.0,57975.0,0.013]
[1725201095218,0.172485,57976.0,57963.0,0.345042]
[1725201095219,0.172485,57976.0,57970.0,0.172502]
[1725201095432,0.172488,57975.0,57970.0,0.1725]
[1725201095659,0.17249,57975.0,57961.0,0.3217]
[1725201095877,0.172485,57976.0,57966.0,0.345025]
[1725201096119,0.172485,57976.0,57970.0,0.172501]
[1725201096578,0.172485,57976.0,57975.0,0.014]
[1725201096792,0.517455,57976.0,57975.0,0.014]
[1725201097003,0.172496,57973.0,57970.0,0.014]
[1725201097215,0.3235,57978.0,57970.0,0.014]
[1725201097433,0.172483,57977.0,57971.0,0.172498]
[1725201097651,0.172486,57976.0,57970.0,0.014]
[1725201097873,0.0842153,57976.0,57972.0,0.172495]
[1725201098090,0.495981,57978.0,57972.0,0.172495]
[1725201098091,0.172483,57977.0,57972.0,0.172495]
[1725201098308,0.172483,57977.0,57975.0,0.014]
[1725201098518,0.495981,57978.0,57975.0,0.028]
[1725201098963,0.001217,57979.0,57975.0,0.028]
[1725201099180,0.001217,57979.0,57976.0,0.344969]
[1725201099392,0.001217,57979.0,57978.0,0.517437]
[1725201100523,0.001217,57979.0,57978.0,0.172479]
[1725201100757,0.001217,57979.0,57978.0,0.012]
[1725201101231,0.001217,57979.0,57978.0,0.024]
[1725201101442,0.001217,57979.0,57978.0,0.012]
[1725201101879,0.001217,57979.0,57978.0,0.026]
[1725201102327,0.001217,57979.0,57978.0,0.543437]
[1725201102556,0.001217,57979.0,57978.0,0.184479]
[1725201102982,0.001217,57979.0,57978.0,0.196479]
[1725201103419,0.001217,57979.0,57978.0,0.038]
[1725201103893,0.0185854,57979.0,57978.0,0.038]
[1725201104122,0.001217,57979.0,57978.0,0.038]
[1725201104813,0.001217,57979.0,57976.0,0.172484]
[1725201105035,0.001217,57979.0,57978.0,0.014]
[1725201105255,0.847845,57979.0,57978.0,0.014]
[1725201105464,0.675369,57979.0,57970.0,0.0008998]
[1725201105677,0.172499,57972.0,57970.0,0.0008998]
[1725201105860,0.7601535,57979.0,57970.0,0.0008998]
[1725201105861,0.0270578,57977.0,57970.0,0.0008998]
[1725201106101,0.0270578,57977.0,57970.0,0.1733998]
[1725201106308,0.172494,57973.0,57970.0,0.0008998]
[1725201106517,0.344978,57975.0,57970.0,0.0008998]
[1725201106730,0.1725,57971.0,57970.0,0.0008998]
[1725201106948,0.5175,57971.0,57970.0,0.0148998]
[1725201107182,1.6367,57971.0,57970.0,0.0148998]
[1725201107411,1.6367,57971.0,57970.0,0.0288998]
[1725201107624,1.6367,57971.0,57952.0,0.0008998]
[1725201107625,0.51766,57953.0,57952.0,0.0008998]
[1725201108080,0.862767,57953.0,57952.0,0.0008998]
[1725201108958,0.5173,57955.0,57952.0,0.0118998]
[1725201109188,0.689849,57955.0,57952.0,0.0118998]
[1725201109410,0.172553,57953.0,57952.0,0.0008998]
[1725201109624,0.862767,57953.0,57952.0,0.0008998]
[1725201109853,1.207874,57953.0,57952.0,0.0118998]
[1725201110086,0.862767,57953.0,57952.0,0.0118998]
[1725201110302,0.172553,57953.0,57952.0,0.0118998]
[1725201110531,0.5183,57955.0,57952.0,0.0118998]
[1725201110746,0.172553,57953.0,57952.0,0.0118998]
[1725201110969,0.863767,57953.0,57952.0,0.0118998]
[1725201111184,0.862767,57953.0,57952.0,0.0118998]
[1725201111393,0.51766,57953.0,57952.0,0.0008998]
[1725201111608,0.862767,57953.0,57952.0,0.0008998]
[1725201111828,1.03131864,57953.0,57952.0,0.0118998]
[1725201112041,0.51766,57953.0,57952.0,0.0118998]
[1725201112262,0.172553,57953.0,57952.0,0.0008998]
[1725201112698,0.172553,57953.0,57952.0,0.0118998]
[1725201113093,0.51866,57953.0,57952.0,0.0118998]
[1725201113335,0.6567646,57953.0,57952.0,0.0118998]
[1725201113992,0.3116576,57953.0,57952.0,0.0118998]
[1725201114451,0.001,57953.0,57952.0,0.0118998]
[1725201116446,0.51866,57953.0,57952.0,0.0118998]
[1725201116664,0.863767,57953.0,57952.0,0.0118998]
[1725201117730,0.863767,57953.0,57952.0,0.0008998]
[1725201117934,0.862767,57953.0,57952.0,0.0008998]
[1725201118118,1.03131864,57953.0,57952.0,0.0118998]
[1725201118355,1.03231864,57953.0,57952.0,0.0118998]
[1725201119666,1.03431864,57953.0,57952.0,0.0118998]
[1725201120341,1.37942564,57953.0,57952.0,0.0118998]
[1725201121037,0.863767,57953.0,57952.0,0.0118998]
[1725201122335,1.210874,57953.0,57952.0,0.0118998]
[1725201122549,1.310874,57953.0,57952.0,0.0118998]
[1725201123234,1.828544,57953.0,57952.0,0.0118998]
[1725201123443,0.345184,57941.0,57933.0,0.665522]
[1725201123676,0.51767,57940.0,57935.0,0.50540786]
[1725201123856,0.51767,57940.0,57933.0,0.665522]
[1725201123857,0.51767,57940.0,57936.0,0.172603]
[1725201124127,0.690262,57940.0,57936.0,0.172603]
[1725201124346,0.690262,57940.0,57933.0,0.3203]
[1725201124347,0.172602,57937.0,57933.0,0.3203]
[1725201124556,0.1726,57938.0,57933.0,0.492912]
[1725201124758,0.345192,57939.0,57935.0,0.172606]
[1725201124759,0.172596,57939.0,57935.0,0.172606]
[1725201125142,0.172598,57938.0,57933.0,0.3343]
[1725201125378,0.172598,57938.0,57934.0,0.172609]
[1725201125604,0.172597,57939.0,57934.0,0.172609]
[1725201126048,0.001,57939.0,57936.0,0.172603]
[1725201126229,0.001,57939.0,57936.0,0.172601]
[1725201126707,0.001,57939.0,57935.0,0.345213]
[1725201126928,0.001,57939.0,57938.0,0.172598]
[1725201127573,0.001,57939.0,57938.0,0.86299]
[1725201127781,0.39278872,57940.0,57939.0,0.517785]
[1725201127973,0.39278872,57940.0,57939.0,0.862975]
[1725201128197,0.39278872,57940.0,57939.0,2.080455]
[1725201128840,0.39278872,57940.0,57939.0,2.078455]
[1725201129053,0.39278872,57940.0,57939.0,2.106455]
[1725201129307,0.39278872,57940.0,57939.0,2.553645]
[1725201129538,0.1919,57972.0,57960.0,0.3379]
[1725201129755,0.1919,57972.0,57965.0,0.172516]
[1725201129756,0.24231659,57970.0,57965.0,0.172516]
[1725201129973,0.172504,57970.0,57965.0,0.172516]
[1725201130195,0.000818,57971.0,57949.0,0.3763987]
[1725201130410,0.000818,57971.0,57929.0,0.334]
[1725201130411,0.172562,57950.0,57943.0,0.361781]
[1725201130634,0.345095,57955.0,57944.0,0.345157]
[1725201130857,0.172557,57952.0,57946.0,0.171573]
[1725201131082,0.345096,57955.0,57939.0,0.014]
[1725201131291,0.172576,57946.0,57941.0,0.172588]
[1725201131505,0.172564,57950.0,57944.0,0.17258]
[1725201131712,0.345113,57952.0,57944.0,0.17258]
[1725201131713,0.172566,57949.0,57944.0,0.17258]
[1725201131947,0.172566,57949.0,57944.0,0.18358]
[1725201132358,0.172566,57949.0,57944.0,0.17258]
[1725201132569,0.172568,57948.0,57942.0,0.172584]
[1725201132774,0.2243359,57948.0,57942.0,0.172584]
[1725201133226,0.2243359,57948.0,57944.0,0.014]
[1725201133468,0.172572,57947.0,57944.0,0.014]
[1725201133898,0.172577,57945.0,57944.0,0.014]
[1725201134111,0.172573,57947.0,57944.0,0.028]
[1725201134540,0.345125,57950.0,57941.0,0.172589]
[1725201134541,0.172574,57946.0,57941.0,0.172589]
[1725201134963,0.172574,57946.0,57944.0,0.014]
[1725201135389,0.172574,57946.0,57939.0,0.345187]
[1725201135597,0.172574,57946.0,57937.0,1.0418967]
[1725201135598,0.172574,57946.0,57940.0,0.345183]
[1725201135809,0.172574,57946.0,57944.0,0.014]
[1725201135810,0.001,57946.0,57944.0,0.014]
[1725201136015,0.001,57946.0,57942.0,0.172585]
[1725201136368,0.001,57946.0,57944.0,0.014]
[1725201136974,0.0356125,57946.0,57944.0,0.014]
[1725201137190,0.2081885,57946.0,57944.0,0.014]
[1725201137637,0.345118,57952.0,57944.0,0.014]
[1725201137854,0.0132712,57951.0,57946.0,0.172573]
[1725201138050,0.17256,57951.0,57946.0,0.170473]
[1725201138278,0.17256,57951.0,57946.0,0.168473]
[1725201138512,0.02707046,57953.0,57945.0,0.3186]
[1725201138728,0.1,57958.0,57951.0,0.345119]
[1725201138729,0.27254,57958.0,57951.0,0.345119]
[1725201138932,0.001,57952.0,57951.0,0.714578]
[1725201139341,0.001,57952.0,57951.0,1.059697]
[1725201139587,0.002,57952.0,57951.0,1.058697]
[1725201139778,0.001,57952.0,57951.0,1.058697]
[1725201139984,0.001,57952.0,57951.0,1.377297]
[1725201140832,0.17253,57961.0,57956.0,0.172543]
[1725201141223,0.001,57958.0,57957.0,0.172541]
[1725201141431,0.172527,57962.0,57957.0,0.172541]
[1725201141657,0.01327276,57961.0,57957.0,0.172541]
[1725201141871,0.345054,57962.0,57955.0,0.172545]
[1725201142076,0.345054,57962.0,57956.0,0.180543]
[1725201142077,0.18680267,57961.0,57956.0,0.180543]
[1725201142277,0.17353,57961.0,57956.0,0.180543]
[1725201142485,0.17253,57961.0,57956.0,0.176543]
[1725201142682,0.17253,57961.0,57956.0,0.172543]
[1725201142889,0.001,57961.0,57957.0,0.008]
[1725201143103,0.001,57961.0,57957.0,0.012]
[1725201143311,0.172532,57960.0,57957.0,0.012]
[1725201143521,0.172538,57958.0,57957.0,0.012]
[1725201143728,0.517615,57958.0,57957.0,0.012]
[1725201143947,0.87596184,57958.0,57957.0,0.012]
[1725201144164,1.34324172,57958.0,57957.0,0.004]
[1725201144610,1.53084172,57958.0,57957.0,0.004]
[1725201144868,1.51757188,57958.0,57957.0,0.004]
[1725201145053,1.53083776,57958.0,57957.0,0.004]
[1725201145279,0.345084,57957.0,57942.0,0.3186]
[1725201145514,0.345084,57957.0,57943.0,0.345166]
[1725201145515,0.172557,57952.0,57943.0,0.345166]
[1725201145750,0.09940552,57956.0,57944.0,0.34516]
[1725201145959,0.172543,57957.0,57956.0,0.004]
[1725201146199,0.01326633,57957.0,57956.0,0.004]
[1725201146411,0.001,57958.0,57956.0,0.004]
[1725201146412,0.173539,57958.0,57956.0,0.004]
[1725201146619,0.172539,57958.0,57953.0,0.172551]
[1725201146836,0.173542,57957.0,57951.0,0.517674]
[1725201147102,0.172544,57956.0,57951.0,0.172557]
[1725201147320,0.345085,57957.0,57945.0,0.34515]
[1725201147528,0.172555,57953.0,57948.0,0.172566]
[1725201147955,0.3451,57955.0,57949.0,0.17245054]
[1725201148183,0.172554,57953.0,57948.0,0.172567]
[1725201149068,0.172549,57955.0,57949.0,0.183565]
[1725201149286,0.173548,57955.0,57949.0,0.197565]
[1725201149504,0.172551,57954.0,57949.0,0.197565]
[1725201149744,0.172551,57954.0,57950.0,0.3186]
[1725201149983,0.172551,57954.0,57950.0,0.491161]
[1725201150433,0.000818,57956.0,57951.0,0.172559]
[1725201150661,0.000818,57956.0,57950.0,0.3186]
[1725201150662,0.172548,57955.0,57950.0,0.491161]
[1725201150925,0.000818,57956.0,57955.0,0.172547]
[1725201151167,0.000818,57956.0,57955.0,0.171547]
[1725201151667,0.000818,57956.0,57950.0,0.3186]
[1725201151925,0.346097,57955.0,57950.0,0.026]
[1725201152410,0.172558,57952.0,57950.0,0.012]
[1725201152700,0.172559,57951.0,57950.0,0.012]
[1725201152930,0.172559,57951.0,57944.0,0.0008998]
[1725201152931,0.172577,57945.0,57944.0,0.0008998]
[1725201153635,0.345144,57947.0,57944.0,0.0008998]
[1725201153864,0.172577,57946.0,57944.0,0.0008998]
[1725201154939,0.345144,57947.0,57944.0,0.0008998]
[1725201154940,0.172577,57945.0,57944.0,0.0008998]
[1725201155389,0.37218897,57952.0,57944.0,0.0148998]
[1725201155606,0.172567,57949.0,57944.0,0.1874778]
[1725201155819,0.001,57946.0,57944.0,0.2154778]
[1725201156289,0.001,57946.0,57944.0,0.1874778]
[1725201156517,0.001,57946.0,57944.0,0.2014778]
[1725201156728,0.001,57946.0,57945.0,0.517731]
[1725201157152,0.345101,57955.0,57945.0,0.517731]
[1725201157153,0.172563,57950.0,57945.0,0.172577]
[1725201157397,0.345101,57955.0,57947.0,0.172569]
[1725201157606,0.001,57952.0,57947.0,0.172569]
[1725201158039,0.172559,57951.0,57945.0,0.345151]
[1725201158251,0.172559,57951.0,57947.0,0.172571]
[1725201158463,0.172557,57952.0,57947.0,0.171571]
[1725201158652,0.17256,57951.0,57947.0,0.171571]
[1725201158948,0.17256,57951.0,57947.0,0.182571]
[1725201159158,0.17256,57951.0,57947.0,0.014]
[1725201159572,0.001,57952.0,57947.0,0.186571]
[1725201159827,0.001,57952.0,57951.0,0.172559]
[1725201160050,0.001,57952.0,57951.0,0.517678]
[1725201160267,0.001,57952.0,57951.0,0.862797]
[1725201160460,0.001,57952.0,57951.0,1.207916]
[1725201161154,0.43517162,57961.0,57955.0,0.862737]
[1725201161379,0.43517162,57961.0,57955.0,0.861737]
[1725201162548,0.02706706,57966.0,57955.0,1.216832]
[1725201162773,0.1,57969.0,57955.0,1.543232]
[1725201163020,0.000818,57971.0,57955.0,1.755332]
[1725201163471,0.002,57969.0,57955.0,0.3504]
[1725201163685,0.002,57969.0,57955.0,0.024]
[1725201163686,0.17254,57958.0,57955.0,0.024]
[1725201163918,0.345069,57960.0,57955.0,0.024]
[1725201164327,0.173362,57956.0,57955.0,0.01]
[1725201164751,0.173362,57956.0,57955.0,0.014]
[1725201165217,0.173362,57956.0,57955.0,0.028]
[1725201165692,0.6048027,57956.0,57955.0,0.028]
[1725201165913,0.9498917,57956.0,57955.0,0.028]
[1725201166335,0.96316192,57956.0,57955.0,0.028]
[1725201167196,0.173362,57956.0,57955.0,0.028]
[1725201167637,0.000818,57956.0,57955.0,0.200547]
[1725201167847,0.000818,57956.0,57955.0,0.028]
[1725201170608,0.000818,57956.0,57955.0,0.200547]
[1725201171238,0.0281531,57956.0,57955.0,0.200547]
[1725201171479,0.173362,57956.0,57955.0,0.028]
[1725201171692,0.518451,57956.0,57955.0,0.028]
[1725201175746,0.000818,57956.0,57955.0,0.028]
[1725201176002,0.000818,57956.0,57955.0,0.5238468]
[1725201176269,0.000818,57956.0,57955.0,0.8689418]
[1725201176762,0.000818,57956.0,57955.0,1.4070368]
[1725201177024,0.000818,57956.0,57955.0,1.7521318]
[1725201177303,0.000818,57956.0,57955.0,1.85570579]
[1725201177551,0.000818,57956.0,57955.0,1.7521318]
[1725201178096,0.0164,57978.0,57955.0,1.7521318]
[1725201178097,0.12915441,58002.0,57993.0,0.005]
[1725201178387,0.02718743,57994.0,57993.0,1.35825531]
[1725201178645,0.02718743,57994.0,57993.0,2.550179]
[1725201178646,0.00013,57994.0,57993.0,2.550179]
[1725201178930,0.00818,58012.0,57998.0,1.221936]
[1725201179194,0.00818,58012.0,57998.0,1.834736]
[1725201179484,0.00818,58012.0,58003.0,2.034231]
[1725201179740,0.00818,58012.0,58003.0,2.27002709]
[1725201179985,0.00818,58012.0,58011.0,1.534067]
[1725201180226,0.00818,58012.0,58011.0,1.850067]
[1725201180725,0.00818,58012.0,58011.0,1.822067]
[1725201182101,0.00818,58012.0,58011.0,1.845067]
[1725201183246,0.00818,58012.0,58011.0,1.859067]
[1725201183753,0.00818,58012.0,58011.0,1.873067]
[1725201185456,0.00818,58012.0,58011.0,1.850067]
[1725201185683,0.00818,58012.0,58011.0,1.657067]
[1725201185923,0.00818,58012.0,58011.0,1.680067]
[1725201188640,0.00818,58012.0,58011.0,2.038009]
[1725201189107,0.00818,58012.0,58011.0,3.085771]
[1725201189363,0.00818,58013.0,58012.0,2.081802]
[1725201189613,0.53244144,58042.0,58018.0,1.91452]
[1725201189871,1e-06,58019.0,58018.0,3.56454077]
[1725201190368,1e-06,58019.0,58018.0,3.05136]
[1725201190601,1e-06,58019.0,58018.0,3.26641369]
[1725201191095,0.50540786,58042.0,58038.0,1.731503]
[1725201191338,0.50540786,58042.0,58038.0,1.754503]
[1725201191572,0.50540786,58052.0,58038.0,1.754503]
[1725201191810,0.172259,58052.0,58038.0,1.754503]
[1725201192047,0.172259,58052.0,58038.0,1.731503]
[1725201192288,0.1826,58053.0,58038.0,1.386902]
[1725201192531,0.17226,58052.0,58038.0,1.400902]
[1725201192768,0.1826,58053.0,58038.0,1.745503]
[1725201192995,0.1826,58053.0,58038.0,1.223602]
[1725201193204,0.172272,58048.0,58038.0,0.889502]
[1725201193450,0.172266,58050.0,58038.0,0.889502]
[1725201193663,0.344524,58051.0,58038.0,0.544901]
[1725201194082,0.172273,58048.0,58038.0,0.544901]
[1725201194315,0.172273,58048.0,58042.0,0.172288]
[1725201194550,0.1826,58053.0,58038.0,0.372601]
[1725201194551,0.344537,58049.0,58038.0,0.028]
[1725201194772,0.1826,58053.0,58039.0,0.00344545]
[1725201195005,0.1826,58053.0,58038.0,0.028]
[1725201195006,0.354857,58053.0,58038.0,0.028]
[1725201195210,0.354857,58053.0,58046.0,0.172275]
[1725201195422,0.354857,58053.0,58044.0,0.344561]
[1725201195423,0.1826,58053.0,58044.0,0.344561]
[1725201195644,0.1826,58053.0,58037.0,0.005]
[1725201195865,0.1826,58053.0,58042.0,0.012]
[1725201196101,0.172245,58057.0,58051.0,0.172261]
[1725201196324,0.172245,58057.0,58042.0,0.012]
[1725201196325,0.172245,58057.0,58052.0,0.172258]
[1725201196553,0.1903,58058.0,58052.0,0.172258]
[1725201196762,0.1903,58058.0,58048.0,0.344537]
[1725201196763,0.0004,58059.0,58053.0,0.00344495]
[1725201196971,0.0004,58059.0,58058.0,0.172241]
[1725201197186,0.0004,58059.0,58058.0,0.861207]
[1725201197465,0.0004,58059.0,58058.0,0.516724]
[1725201197658,0.0004,58059.0,58057.0,0.172243]
[1725201197791,0.0004,58059.0,58054.0,0.344506]
[1725201197792,0.0004,58059.0,58058.0,0.172241]
[1725201198199,0.0004,58059.0,58058.0,0.861207]
[1725201198625,0.0004,58059.0,58058.0,0.516724]
[1725201198826,0.0004,58059.0,58055.0,0.344495]
[1725201199041,0.0004,58059.0,58048.0,0.344536]
[1725201199242,0.0004,58059.0,58052.0,0.344518]
[1725201199446,0.000817,58057.0,58053.0,0.00344466]
[1725201199765,0.000817,58057.0,58056.0,0.861235]
[1725201200207,0.000817,58057.0,58056.0,1.205729]
[1725201201251,0.000817,58057.0,58056.0,1.219729]
[1725201201501,0.000817,58057.0,58056.0,0.875235]
[1725201201872,0.000817,58057.0,58056.0,0.870235]
[1725201202818,0.000817,58057.0,58056.0,1.732529]
[1725201203054,0.000817,58057.0,58056.0,1.760529]
[1725201203249,0.000817,58057.0,58056.0,2.119023]
[1725201203505,0.000817,58057.0,58056.0,2.229023]
[1725201203746,0.000817,58057.0,58056.0,1.870529]
[1725201203967,0.000817,58057.0,58056.0,1.856529]
[1725201204208,0.000817,58057.0,58056.0,1.870529]
[1725201204438,0.000817,58057.0,58056.0,1.884529]
[1725201204639,0.000817,58057.0,58056.0,1.860529]
[1725201204878,0.000817,58057.0,58056.0,1.874529]
[1725201206140,0.000817,58057.0,58056.0,0.872041]
[1725201206394,0.000817,58057.0,58056.0,1.216535]
[1725201207412,0.000817,58057.0,58056.0,1.561029]
[1725201207624,0.000817,58057.0,58056.0,1.689029]
[1725201208320,0.018417,58057.0,58056.0,0.539741]
[1725201208520,0.018417,58057.0,58056.0,0.884235]
[1725201211201,0.018417,58057.0,58056.0,1.850829]
[1725201211420,0.018417,58057.0,58056.0,1.855829]
[1725201211629,0.018417,58057.0,58056.0,2.210323]
[1725201212476,0.0004,58059.0,58058.0,1.909656]
[1725201212753,0.0004,58059.0,58058.0,2.342356]
[1725201213404,0.0004,58059.0,58058.0,2.531756]
[1725201213616,0.0004,58059.0,58058.0,2.533756]
[1725201213819,0.0004,58059.0,58058.0,2.545756]
[1725201214046,0.0004,58059.0,58058.0,2.547756]
[1725201214279,0.0004,58059.0,58058.0,2.201273]
[1725201214494,0.0004,58059.0,58058.0,2.200273]
[1725201214700,0.0004,58059.0,58058.0,2.010873]
[1725201215755,0.0004,58059.0,58058.0,1.66639]
[1725201215963,0.0004,58059.0,58058.0,1.67139]
[1725201216641,0.0004,58059.0,58058.0,1.66639]
[1725201216887,0.0004,58059.0,58058.0,1.494149]
[1725201217099,0.0004,58059.0,58058.0,2.010873]
[1725201217306,0.0004,58059.0,58058.0,2.025873]
[1725201218208,0.0004,58059.0,58058.0,1.68139]
[1725201218624,0.0004,58059.0,58058.0,1.66639]
[1725201218839,0.0004,58059.0,58058.0,1.67139]
[1725201219101,0.0004,58059.0,58058.0,1.68139]
[1725201219303,0.0004,58059.0,58058.0,2.370356]
[1725201219508,0.0004,58059.0,58058.0,2.025873]
[1725201220137,0.0004,58059.0,58058.0,2.015873]
[1725201220417,0.0004,58059.0,58058.0,2.11694949]
[1725201220646,0.0004,58059.0,58058.0,2.12694949]
[1725201220859,0.0004,58059.0,58058.0,2.02580103]
[1725201221281,0.0004,58059.0,58058.0,1.36161803]
[1725201222563,0.0004,58059.0,58058.0,1.23361803]
[1725201222772,0.0004,58059.0,58058.0,1.36114263]
[1725201223026,0.0004,58059.0,58058.0,1.23361803]
[1725201224456,0.0004,58059.0,58058.0,0.88913503]
[1725201224692,0.021108,58059.0,58058.0,0.200241]
[1725201225157,0.03437774,58059.0,58058.0,0.544724]
[1725201225366,0.01448774,58059.0,58058.0,0.889207]
[1725201225607,0.01448774,58059.0,58058.0,0.875207]
[1725201225608,0.001218,58059.0,58058.0,0.875207]
[1725201225829,0.001218,58059.0,58058.0,0.889207]
[1725201226466,0.001218,58059.0,58058.0,0.875207]
[1725201226917,0.001218,58059.0,58058.0,0.889207]
[1725201227337,0.00075985,58059.0,58058.0,0.889207]
[1725201228426,0.00075985,58059.0,58058.0,0.88916606]